fUST/lending_fUST_20250727
["ID","MTS","AMOUNT","RATE_DAILY","PERIOD"]
[375154967,1753554643177,-460.0,0.00019452,2]
[375154969,1753554643187,-460.0,0.00019452,2]
[375154971,1753554643196,-460.0,0.00019452,2]
[375154973,1753554643206,-460.0,0.00019452,2]
[375154975,1753554643215,-460.0,0.00019452,2]
[375154977,1753554643225,-460.0,0.00019452,2]
[375154979,1753554643234,-435.09204422,0.00019452,2]
[375154981,1753554643244,-460.0,0.00019452,2]
[375154983,1753554643253,-460.0,0.00019452,2]
[375154985,1753554643263,-460.0,0.00019452,2]
[375154999,1753554643377,-472.55704682,0.00019452,2]
[375155001,1753554643387,-460.0,0.00019452,2]
[375155003,1753554643396,-565.83399209,0.00019452,2]
[375155005,1753554643406,-460.0,0.00019452,2]
[375155007,1753554643414,-460.0,0.00019452,2]
[375155009,1753554643424,-460.0,0.00019452,2]
[375155011,1753554643433,-892.94,0.00019452,2]
[375155013,1753554643442,-460.0,0.00019452,2]
[375155015,1753554643452,-460.0,0.00019452,2]
[375155016,1753554643463,-460.0,0.00019452,2]
[375155018,1753554643472,-460.0,0.00019452,2]
[375155020,1753554643482,-460.0,0.00019452,2]
[375155022,1753554643491,-671.29,0.00019452,2]
[375155025,1753554643502,-460.0,0.00019452,2]
[375155027,1753554643511,-460.0,0.00019452,2]
[375155029,1753554643521,-460.0,0.00019452,2]
[375155030,1753554643531,-569.11,0.00019452,2]
[375155032,1753554643540,-460.0,0.00019452,2]
[375155034,1753554643549,-683.09,0.00019452,2]
[375155036,1753554643559,-503.68,0.00019452,2]
[375155038,1753554643568,-460.0,0.00019452,2]
[375155040,1753554643578,-460.0,0.00019452,2]
[375155042,1753554643587,-460.0,0.00019452,2]
[375155045,1753554643596,-460.0,0.00019452,2]
[375155048,1753554643606,-460.0,0.00019452,2]
[375155050,1753554643615,-460.0,0.00019452,2]
[375155053,1753554643624,-460.0,0.00019452,2]
[375155055,1753554643634,-460.0,0.00019452,2]
[375155057,1753554643643,-460.0,0.00019452,2]
[375155059,1753554643652,-460.0,0.00019452,2]
[375155061,1753554643663,-460.0,0.00019452,2]
[375155063,1753554643672,-460.0,0.00019452,2]
[375155065,1753554643682,-460.0,0.00019452,2]
[375155067,1753554643692,-460.0,0.00019452,2]
[375155069,1753554643702,-460.0,0.00019452,2]
[375155071,1753554643711,-460.0,0.00019452,2]
[375155073,1753554643721,-460.0,0.00019452,2]
[375155075,1753554643731,-460.0,0.00019452,2]
[375155077,1753554643740,-460.0,0.00019452,2]
[375155079,1753554643750,-460.0,0.00019452,2]
[375155081,1753554643764,-460.0,0.00019452,2]
[375155083,1753554643774,-460.0,0.00019452,2]
[375155085,1753554643785,-460.0,0.00019452,2]
[375155088,1753554643795,-38.73880764,0.00019452,2]
[375155146,1753554644355,684.46,0.00019178,2]
[375155366,1753554646551,-306.52041475,0.00019452,2]
[375155450,1753554647398,5000.0,0.00019178,2]
[375155498,1753554647863,460.0,0.00019178,2]
[375155589,1753554648763,460.0,0.00019178,2]
[375156185,1753554656465,460.0,0.00019178,2]
[375156286,1753554657561,460.0,0.00019178,2]
[375156387,1753554658870,460.0,0.00019178,2]
[375156557,1753554660622,404.13031225,0.00019178,2]
[375156602,1753554662045,460.0,0.00019178,2]
[375156603,1753554662297,305.69505705,0.00019178,2]
[375156604,1753554662319,154.30494295,0.00019178,2]
[375156621,1753554663332,460.0,0.00019178,2]
[375156622,1753554663440,5000.0,0.00019178,2]
[375156623,1753554663828,460.0,0.00019178,2]
[375156624,1753554670170,460.0,0.00019178,2]
[375156625,1753554676927,460.0,0.00019178,2]
[375156626,1753554678704,3005.69505705,0.00019178,2]
[375156627,1753554678728,1994.30494295,0.00019178,2]
[375156628,1753554679088,663.07,0.00019178,2]
[375156629,1753554693179,460.0,0.00019178,2]
[375156630,1753554694939,5000.0,0.00019178,2]
[375156631,1753554696376,528.47,0.00019178,2]
[375156632,1753554699730,460.0,0.00019178,2]
[375156633,1753554700298,460.0,0.00019178,2]
[375156634,1753554700770,434.15505705,0.00019178,2]
[375156635,1753554700794,25.84494295,0.00019178,2]
[375156636,1753554703503,460.0,0.00019178,2]
[375156637,1753554705885,297.18393,0.00018868,2]
[375156638,1753554706218,200.62137152,0.00018868,2]
[375156639,1753554710657,5000.0,0.00019178,2]
[375156640,1753554711958,460.0,0.00019178,2]
[375156641,1753554718356,460.0,0.00019178,2]
[375156642,1753554726081,3096.34975553,0.00019178,2]
[375156643,1753554726105,1903.65024447,0.00019178,2]
[375156644,1753554738527,460.0,0.00019178,2]
[375156645,1753554741107,460.0,0.00019178,2]
[375156646,1753554741135,460.0,0.00019178,2]
[375156647,1753554743248,460.0,0.00019178,2]
[375156648,1753554743856,5000.0,0.00019178,2]
[375156653,1753554759754,1256.34975553,0.00019178,2]
[375156654,1753554759779,3743.65024447,0.00019178,2]
[375156655,1753554764517,460.0,0.00019178,2]
[375156656,1753554769419,818.53,0.00019178,2]
[375156657,1753554770851,460.0,0.00019178,2]
[375156658,1753554772633,460.0,0.00019178,2]
[375156659,1753554773948,460.0,0.00019178,2]
[375156660,1753554774903,3597.81975553,0.00019178,2]
[375156661,1753554774926,1402.18024447,0.00019178,2]
[375156662,1753554775363,460.0,0.00019178,2]
[375156663,1753554775802,460.0,0.00019178,2]
[375156664,1753554790587,5000.0,0.00019178,2]
[375156665,1753554792573,460.0,0.00019178,2]
[375156666,1753554793577,460.0,0.00019178,2]
[375156667,1753554796255,460.0,0.00019178,2]
[375156668,1753554798622,1251.56801892,0.00019178,2]
[375156669,1753554799938,46.25173661,0.00019178,2]
[375156670,1753554799961,475.43826339,0.00019178,2]
[375156671,1753554806676,5000.0,0.00019178,2]
[375156672,1753554807725,460.0,0.00019178,2]
[375156673,1753554818819,501.53113575,0.00019178,2]
[375156674,1753554819637,460.0,0.00019178,2]
[375156675,1753554821869,3103.03060086,0.00019178,2]
[375156676,1753554821896,1896.96939914,0.00019178,2]
[375156677,1753554822498,460.0,0.00019178,2]
[375156678,1753554835508,460.0,0.00019178,2]
[375156679,1753554835541,460.0,0.00019178,2]
[375156680,1753554837459,5000.0,0.00019178,2]
[375156681,1753554837489,460.0,0.00019178,2]
[375156682,1753554839602,460.0,0.00019178,2]
[375156683,1753554852192,460.0,0.00019178,2]
[375156684,1753554852682,343.03060086,0.00019178,2]
[375156685,1753554852706,4656.96939914,0.00019178,2]
[375156686,1753554862301,5343.03060086,0.00018867,2]
[375156687,1753554862326,921.79488474,0.00018867,2]
[375156688,1753554870807,5000.0,0.00019178,2]
[375156689,1753554874118,460.0,0.00019178,2]
[375156690,1753554886332,3618.20511526,0.00019178,2]
[375156691,1753554886467,1381.79488474,0.00019178,2]
[375156692,1753554894632,5000.0,0.00019178,2]
[375156693,1753554897576,784.42,0.00019178,2]
[375156694,1753554899739,823.473035,0.00018626,2]
[375156696,1753554902669,2010.31208026,0.00019178,2]
[375156697,1753554902692,2989.68791974,0.00019178,2]
[375156703,1753554911188,460.0,0.00019178,2]
[375156704,1753554911594,5000.0,0.00019178,2]
[375156707,1753554916632,531.59,0.00019178,2]
[375156710,1753554918946,460.0,0.00019178,2]
[375156711,1753554920329,558.72208026,0.00019178,2]
[375156712,1753554920353,4441.27791974,0.00019178,2]
[375156715,1753554923982,450.03270431,0.00019178,2]
[375156716,1753554925819,499.95,0.00019178,2]
[375156718,1753554928108,4608.73937595,0.00019178,2]
[375156719,1753554928132,391.26062405,0.00019178,2]
[375156724,1753554934926,460.0,0.00019178,2]
[375156726,1753554936161,5000.0,0.00019178,2]
[375156731,1753554943933,4148.73937595,0.00019178,2]
[375156732,1753554943956,851.26062405,0.00019178,2]
[375156735,1753554946993,460.0,0.00019178,2]
[375156739,1753554952427,5000.0,0.00019178,2]
[375156743,1753554958737,315.7812952,0.00018606,2]
[375156744,1753554958812,500.0,0.00019178,2]
[375156745,1753554960892,460.0,0.00019178,2]
[375156747,1753554962362,460.0,0.00019178,2]
[375156748,1753554963346,1952.95808075,0.00019178,2]
[375156749,1753554963370,3047.04191925,0.00019178,2]
[375156750,1753554964557,460.0,0.00019178,2]
[375156751,1753554965267,362.72,0.00019178,2]
[375156755,1753554967637,150.0,0.00019128,2]
[375156758,1753554971818,3804.49874471,0.00019178,2]
[375156760,1753554979521,460.0,0.00019178,2]
[375156761,1753554981925,460.0,0.00019178,2]
[375156762,1753554982897,1255.73933604,0.00019178,2]
[375156763,1753554982922,3744.26066396,0.00019178,2]
[375156770,1753554996100,460.0,0.00019178,2]
[375156774,1753554998516,1739.84224694,0.00019178,2]
[375156775,1753555007524,235.78798983,0.00018867,2]
[375156777,1753555031395,460.0,0.00019178,2]
[375156778,1753555048557,460.0,0.00019178,2]
[375156779,1753555081192,460.0,0.00019178,2]
[375156780,1753555094371,460.0,0.00019178,2]
[375156781,1753555100622,557.38,0.00019178,2]
[375156782,1753555100852,571.12,0.00019178,2]
[375156786,1753555136369,460.0,0.00019178,2]
[375156787,1753555137602,383.91105098,0.00019178,2]
[375156788,1753555140350,7.69804829,0.00019178,2]
[375156789,1753555140374,744.04195171,0.00019178,2]
[375156790,1753555157583,460.0,0.00019178,2]
[375156791,1753555173164,460.0,0.00019178,2]
[375156792,1753555178916,460.0,0.00019178,2]
[375156793,1753555193459,205.34287595,0.00019178,2]
[375156794,1753555197711,460.0,0.00019178,2]
[375156795,1753555203651,460.0,0.00019178,2]
[375156797,1753555215211,460.0,0.00019178,2]
[375156798,1753555219045,460.0,0.00019178,2]
[375156800,1753555262932,460.0,0.00019178,2]
[375156801,1753555273836,1494.2614076,0.00018426,2]
[375156802,1753555286275,460.0,0.00019178,2]
[375156804,1753555304172,460.0,0.00019178,2]
[375156805,1753555312138,460.0,0.00019178,2]
[375156806,1753555321174,345.1,0.00019178,2]
[375156811,1753555361119,479.12,0.00019178,2]
[375156812,1753555361257,466.92204182,0.00019178,2]
[375156814,1753555388143,460.0,0.00019178,2]
[375156815,1753555404775,460.0,0.00019178,2]
[375156818,1753555457853,230.4046654,0.00013699,2]
[375156819,1753555480732,54.80705752,0.00019178,2]
[375156820,1753555480755,405.19294248,0.00019178,2]
[375156821,1753555495810,460.0,0.00019178,2]
[375156822,1753555507211,460.0,0.00019178,2]
[375156823,1753555519324,720.42,0.00019178,2]
[375156824,1753555535953,302.66710251,0.00019082,2]
[375156826,1753555579615,7651.71995501,0.0001845,2]
[375156827,1753555579639,10000.0,0.0001845,2]
[375156828,1753555579663,7248.28004499,0.0001845,2]
[375156829,1753555586755,460.0,0.00019178,2]
[375156833,1753555595002,460.0,0.00019178,2]
[375156835,1753555604073,460.0,0.00019178,2]
[375156837,1753555630134,-283.68555776,0.00019273,2]
[375156839,1753555653085,-18.98154475,0.00019273,2]
[375156840,1753555653107,-200.78056652,0.00019349,2]
[375156841,1753555653128,-200.78056652,0.00019351,2]
[375156842,1753555653150,-460.0,0.00019449,2]
[375156843,1753555653171,-264.91596639,0.00019449,2]
[375156844,1753555653195,-500.0,0.00019449,2]
[375156845,1753555653216,-179.51648214,0.00019449,2]
[375156846,1753555653239,-460.0,0.0001945,2]
[375156847,1753555653262,-460.0,0.0001945,2]
[375156848,1753555653283,-460.0,0.0001945,2]
[375156849,1753555653303,-460.0,0.0001945,2]
[375156850,1753555653324,-460.0,0.0001945,2]
[375156851,1753555653345,-460.0,0.0001945,2]
[375156852,1753555653366,-116.08877206,0.0001945,2]
[375156856,1753555707732,460.0,0.00019178,2]
[375156863,1753555736885,690.4,0.00019178,2]
[375156871,1753555800772,221.31995501,0.00019178,2]
[375156872,1753555800797,238.68004499,0.00019178,2]
[375156873,1753555816519,460.0,0.00019178,2]
[375156892,1753555832567,-522.34043315,0.00019291,2]
[375156893,1753555835524,1589.3374851,0.0001845,2]
[375157194,1753555875088,460.0,0.00019178,2]
[375157195,1753555889317,460.0,0.00019178,2]
[375157196,1753555911662,460.0,0.00019178,2]
[375157197,1753555914739,460.0,0.00019178,2]
[375157199,1753555982430,207.02422603,0.00018566,2]
[375157200,1753555985061,827.2688072,0.00018566,2]
[375157201,1753555988085,738.99,0.00019178,2]
[375157203,1753556008213,460.0,0.00019178,2]
[375157204,1753556009597,302.69733596,0.00019082,2]
[375157206,1753556053326,460.0,0.00019178,2]
[375157208,1753556103915,561.008832,0.00018657,2]
[375157209,1753556104312,460.0,0.00019178,2]
[375157210,1753556115357,523.5,0.00019178,2]
[375157213,1753556178615,1331.49326872,0.00018584,2]
[375157214,1753556178645,2994.08037948,0.00018584,2]
[375157216,1753556184767,589.1,0.00019178,2]
[375157217,1753556213977,460.0,0.00019178,2]
[375157218,1753556226465,460.0,0.00019178,2]
[375157223,1753556310662,150.0,0.00021193,30]
[375157225,1753556326904,501.69,0.00019178,2]
[375157227,1753556381157,460.0,0.00019178,2]
[375157230,1753556437971,460.0,0.00019178,2]
[375157231,1753556468708,150.0,0.00021201,30]
[375157234,1753556492762,460.0,0.00019178,2]
[375157236,1753556580046,480.79,0.00019178,2]
[375157237,1753556595309,3134.33962052,0.00018429,2]
[375157238,1753556595332,10000.0,0.00018429,2]
[375157239,1753556595354,10000.0,0.00018429,2]
[375157240,1753556595376,1765.66037948,0.00018429,2]
[375157243,1753556690463,460.0,0.00019178,2]
[375157244,1753556720596,302.87876082,0.00019082,2]
[375157245,1753556767315,199.44,0.00026027,120]
[375157246,1753556848120,-666.0,0.00019178,2]
[375157247,1753556848140,-277.65956685,0.00019291,2]
[375157248,1753556848162,-197.406404,0.00019291,2]
[375157249,1753556848182,-460.0,0.00019436,2]
[375157250,1753556848203,-462.32364681,0.00019436,2]
[375157251,1753556848222,-500.0,0.00019436,2]
[375157252,1753556848241,-500.0,0.00019436,2]
[375157253,1753556848262,-500.0,0.00019436,2]
[375157254,1753556848282,-500.0,0.00019436,2]
[375157255,1753556848301,-500.0,0.00019436,2]
[375157256,1753556848326,-500.0,0.00019436,2]
[375157257,1753556848345,-170.69817088,0.00019436,2]
[375157258,1753556848365,-500.0,0.00019436,2]
[375157259,1753556848384,-373.58806336,0.00019436,2]
[375157262,1753556891818,164.505336,0.00019178,2]
[375157264,1753556924377,150.0,0.000189,2]
[375157265,1753556965176,150.0,0.00020306,30]
[375157266,1753556965596,150.0,0.00022152,30]
[375157309,1753557032404,-170.13530146,0.00019247,2]
[375157311,1753557032413,-188.74095381,0.00019347,2]
[375157313,1753557032423,-164.505337,0.00019347,2]
[375157315,1753557032432,-155.24905794,0.00019435,2]
[375157732,1753557038218,-1044.75094206,0.00019435,2]
[375157733,1753557038228,-8822.85168057,0.00019436,2]
[375157795,1753557043233,-541.65,0.00019436,2]
[375157796,1753557043246,-2389.30648717,0.00019436,2]
[375157797,1753557043256,-460.0,0.00019436,2]
[375157798,1753557043265,-460.0,0.00019436,2]
[375157799,1753557043276,-460.0,0.00019436,2]
[375157800,1753557043287,-460.0,0.00019436,2]
[375157801,1753557043302,-460.0,0.00019436,2]
[375157802,1753557043312,-460.0,0.00019436,2]
[375157803,1753557043321,-460.0,0.00019436,2]
[375157804,1753557043330,-460.19531222,0.00019436,2]
[375157805,1753557043339,-710.28,0.00019436,2]
[375157806,1753557043348,-500.0,0.00019436,2]
[375157807,1753557043358,-500.0,0.00019436,2]
[375157808,1753557043367,-500.0,0.00019436,2]
[375157809,1753557043377,-196.90445175,0.00019436,2]
[375157810,1753557043387,-626.41193664,0.00019436,2]
[375157811,1753557043397,-500.0,0.00019436,2]
[375157812,1753557043407,-151.0,0.00019437,2]
[375157814,1753557043416,-151.0,0.00019437,2]
[375157816,1753557043426,-630.23415282,0.00019437,2]
[375157817,1753557043435,-151.0,0.00019437,2]
[375157818,1753557043445,-151.0,0.00019437,2]
[375157819,1753557043455,-151.0,0.00019437,2]
[375157820,1753557043465,-151.0,0.00019437,2]
[375157821,1753557043475,-151.0,0.00019437,2]
[375157822,1753557043485,-1771.67249661,0.00019437,2]
[375157823,1753557043495,-151.0,0.00019437,2]
[375157824,1753557043504,-151.0,0.00019437,2]
[375157825,1753557043513,-151.0,0.00019437,2]
[375157826,1753557043521,-151.0,0.00019437,2]
[375157827,1753557043530,-151.0,0.00019437,2]
[375157828,1753557043540,-151.0,0.00019437,2]
[375157829,1753557043549,-151.0,0.00019437,2]
[375157830,1753557043559,-151.0,0.00019437,2]
[375157831,1753557043567,-151.0,0.00019437,2]
[375157832,1753557043577,-151.0,0.00019437,2]
[375157833,1753557043586,-151.0,0.00019437,2]
[375157834,1753557043596,-151.0,0.00019437,2]
[375157835,1753557043605,-220.2377063,0.00019437,2]
[375157836,1753557043615,-151.0,0.00019437,2]
[375157837,1753557043624,-464.29,0.00019438,2]
[375157838,1753557043634,-555.05396305,0.00019438,2]
[375157839,1753557043648,-460.0,0.00019446,2]
[375157840,1753557043660,-460.0,0.00019446,2]
[375157841,1753557043673,-460.0,0.00019446,2]
[375157842,1753557043697,-460.0,0.00019446,2]
[375157843,1753557043711,-460.0,0.00019446,2]
[375157844,1753557043726,-460.0,0.00019446,2]
[375157845,1753557043739,-460.0,0.00019446,2]
[375157846,1753557043750,-460.0,0.00019446,2]
[375157847,1753557043761,-460.0,0.00019446,2]
[375157848,1753557043777,-460.0,0.00019446,2]
[375157849,1753557043790,-575.04883195,0.00019446,2]
[375157850,1753557043808,-460.0,0.00019446,2]
[375157851,1753557043820,-460.0,0.00019446,2]
[375157852,1753557043831,-460.0,0.00019446,2]
[375157853,1753557043844,-674.01,0.00019446,2]
[375157854,1753557043856,-460.0,0.00019447,2]
[375157855,1753557043868,-460.0,0.00019447,2]
[375157856,1753557043881,-460.0,0.00019447,2]
[375157857,1753557043893,-460.0,0.00019447,2]
[375157858,1753557043906,-343.91122794,0.00019447,2]
[375157859,1753557043918,-437.17741673,0.00019447,2]
[375157860,1753557043929,-460.0,0.00019447,2]
[375157861,1753557043940,-460.0,0.00019447,2]
[375157862,1753557043952,-460.0,0.00019447,2]
[375157863,1753557043965,-460.0,0.00019447,2]
[375157864,1753557043977,-460.0,0.00019447,2]
[375157865,1753557043990,-460.0,0.00019447,2]
[375157866,1753557044002,-460.0,0.00019447,2]
[375157867,1753557044014,-460.0,0.00019447,2]
[375157868,1753557044025,-460.0,0.00019447,2]
[375157869,1753557044040,-460.0,0.00019447,2]
[375157870,1753557044052,-531.18009253,0.00019447,2]
[375157871,1753557044064,-460.0,0.00019447,2]
[375157872,1753557044076,-460.0,0.00019447,2]
[375157873,1753557044087,-460.0,0.00019447,2]
[375157874,1753557044100,-460.0,0.00019447,2]
[375157875,1753557044111,-460.0,0.00019447,2]
[375157876,1753557044123,-460.0,0.00019447,2]
[375157877,1753557044139,-365.29932237,0.00019447,2]
[375157878,1753557044151,-460.0,0.00019447,2]
[375157879,1753557044163,-460.0,0.00019447,2]
[375157880,1753557044174,-460.0,0.00019447,2]
[375157881,1753557044186,-460.0,0.00019447,2]
[375157882,1753557044197,-460.0,0.00019447,2]
[375157883,1753557044210,-460.0,0.00019447,2]
[375157884,1753557044222,-460.0,0.00019447,2]
[375157885,1753557044233,-460.0,0.00019447,2]
[375157886,1753557044244,-460.0,0.00019447,2]
[375157887,1753557044256,-460.0,0.00019447,2]
[375157888,1753557044268,-460.0,0.00019447,2]
[375157889,1753557044279,-460.0,0.00019447,2]
[375157890,1753557044291,-460.0,0.00019447,2]
[375157891,1753557044303,-460.0,0.00019447,2]
[375157892,1753557044315,-460.0,0.00019447,2]
[375157893,1753557044327,-218.76354355,0.00019447,2]
[375157894,1753557044340,-460.0,0.00019447,2]
[375157895,1753557044356,-460.0,0.00019448,2]
[375157896,1753557044368,-460.0,0.00019448,2]
[375157897,1753557044380,-460.0,0.00019448,2]
[375157898,1753557044392,-460.0,0.00019448,2]
[375157899,1753557044405,-460.0,0.00019448,2]
[375157900,1753557044417,-460.0,0.00019448,2]
[375157901,1753557044427,-460.0,0.00019448,2]
[375157902,1753557044438,-460.0,0.00019448,2]
[375157903,1753557044448,-2020.50890681,0.00019449,2]
[375157904,1753557044459,-460.0,0.00019449,2]
[375157905,1753557044469,-460.0,0.00019449,2]
[375157906,1753557044480,-539.96268388,0.00019449,2]
[375157907,1753557044492,-460.0,0.00019449,2]
[375157908,1753557044502,-469.32395478,0.00019449,2]
[375157909,1753557044514,-460.0,0.00019449,2]
[375157910,1753557044525,-460.0,0.00019449,2]
[375157911,1753557044543,-460.0,0.00019449,2]
[375157912,1753557044554,-460.0,0.00019449,2]
[375157913,1753557044565,-434.94661483,0.00019449,2]
[375157914,1753557044576,-460.0,0.00019449,2]
[375157915,1753557044586,-460.0,0.00019449,2]
[375157916,1753557044596,-460.0,0.00019449,2]
[375157917,1753557044608,-460.0,0.00019449,2]
[375157918,1753557044618,-500.0,0.00019449,2]
[375157919,1753557044629,-158.42372611,0.00019449,2]
[375157920,1753557044639,-460.0,0.00019449,2]
[375157921,1753557044652,-460.0,0.00019449,2]
[375157922,1753557044664,-460.0,0.00019449,2]
[375157923,1753557044675,-469.88118433,0.00019449,2]
[375157924,1753557044686,-460.0,0.00019449,2]
[375157925,1753557044697,-460.0,0.00019449,2]
[375157926,1753557044707,-460.0,0.00019449,2]
[375157927,1753557044718,-460.0,0.00019449,2]
[375157928,1753557044728,-460.0,0.00019449,2]
[375157929,1753557044741,-460.0,0.00019449,2]
[375157930,1753557044752,-460.0,0.0001945,2]
[375157931,1753557044763,-461.34347047,0.0001945,2]
[375157932,1753557044774,-460.0,0.0001945,2]
[375157933,1753557044785,-460.0,0.0001945,2]
[375157934,1753557044796,-460.0,0.0001945,2]
[375157935,1753557044807,-1189.1,0.0001945,2]
[375157936,1753557044819,-460.0,0.0001945,2]
[375157937,1753557044830,-460.0,0.0001945,2]
[375157938,1753557044844,-460.0,0.0001945,2]
[375157939,1753557044856,-460.0,0.0001945,2]
[375157940,1753557044867,-460.0,0.0001945,2]
[375157941,1753557044878,-460.0,0.0001945,2]
[375157942,1753557044890,-460.0,0.0001945,2]
[375157943,1753557044901,-460.0,0.0001945,2]
[375157944,1753557044913,-460.0,0.0001945,2]
[375157945,1753557044924,-460.0,0.00019451,2]
[375157946,1753557044936,-460.0,0.00019451,2]
[375157947,1753557044947,-510.17,0.00019451,2]
[375157948,1753557044958,-460.0,0.00019451,2]
[375157949,1753557044970,-460.0,0.00019451,2]
[375157950,1753557044981,-500.0,0.00019452,2]
[375157951,1753557044992,-500.0,0.00019452,2]
[375157952,1753557045003,-151.0,0.00019452,2]
[375157953,1753557045014,-271.86983277,0.00019452,2]
[375157954,1753557045027,-150.0,0.00019578,2]
[375157955,1753557045038,-460.0,0.0001971,2]
[375157956,1753557045049,-460.0,0.0001971,2]
[375157957,1753557045061,-460.0,0.0001971,2]
[375157958,1753557045073,-460.0,0.0001971,2]
[375157959,1753557045083,-460.0,0.0001971,2]
[375157960,1753557045095,-710.28,0.0001971,2]
[375157961,1753557045105,-460.0,0.0001972,2]
[375157962,1753557045117,-460.0,0.0001972,2]
[375157963,1753557045128,-460.0,0.0001972,2]
[375157964,1753557045142,-460.0,0.0001972,2]
[375157965,1753557045153,-460.0,0.0001972,2]
[375157966,1753557045303,-460.0,0.0001972,2]
[375157967,1753557045315,-460.0,0.0001972,2]
[375157968,1753557045326,-460.0,0.0001972,2]
[375157969,1753557045338,-460.0,0.0001972,2]
[375157970,1753557045349,-674.01,0.0001972,2]
[375157971,1753557045360,-1474.05326342,0.0001972,2]
[375157972,1753557045371,-1474.05326342,0.0001972,2]
[375157973,1753557045382,-1474.05326342,0.0001972,2]
[375157974,1753557045392,-1474.05326342,0.0001972,2]
[375157975,1753557045402,-1474.05326342,0.0001972,2]
[375157976,1753557045411,-1474.05326342,0.0001972,2]
[375157977,1753557045422,-1474.05326342,0.0001972,2]
[375157978,1753557045433,-1474.05326342,0.0001972,2]
[375157979,1753557045443,-1474.05326342,0.0001972,2]
[375157980,1753557045453,-1474.05326342,0.0001972,2]
[375157981,1753557045464,-1474.05326342,0.0001972,2]
[375157982,1753557045474,-1474.05326342,0.0001972,2]
[375157983,1753557045483,-1474.05326342,0.0001972,2]
[375157984,1753557045493,-1474.05326342,0.0001972,2]
[375157985,1753557045509,-1474.05326342,0.0001972,2]
[375157986,1753557045519,-1474.05326342,0.0001972,2]
[375157987,1753557045529,-1474.05326342,0.0001972,2]
[375157988,1753557045539,-1474.05326342,0.0001972,2]
[375157989,1753557045548,-1474.05326342,0.0001972,2]
[375157990,1753557045558,-1474.05326342,0.0001972,2]
[375157991,1753557045568,-1474.05326342,0.0001972,2]
[375157992,1753557045578,-1474.05326342,0.0001972,2]
[375157993,1753557045588,-245.37864525,0.00019721,2]
[375157994,1753557045597,-460.0,0.00019721,2]
[375157995,1753557045607,-460.0,0.00019721,2]
[375157996,1753557045616,-460.0,0.00019721,2]
[375157997,1753557045626,-460.0,0.00019721,2]
[375157998,1753557045636,-464.46271651,0.00019721,2]
[375157999,1753557045646,-420.06914309,0.00019721,2]
[375158000,1753557045662,-460.0,0.00019721,2]
[375158001,1753557045672,-460.40558873,0.00019721,2]
[375158002,1753557045682,-460.0,0.00019721,2]
[375158003,1753557045693,-460.0,0.00019721,2]
[375158004,1753557045703,-460.0,0.00019721,2]
[375158005,1753557045716,-460.0,0.00019721,2]
[375158006,1753557045726,-460.0,0.00019721,2]